Cogmind - Beta 16 @@@ ROGUE MODE // 2026.01.09 @ 20:18:57 Player: AngelSpirit Result: Destroyed by Z2-80E(R) with Subdweller Machine Gun Performance ------------- Evolutions (0) 0 Regions Visited (2) 400 Robots Destroyed (5) 25 Value Destroyed (107) 107 Prototype IDs (0) 0 Alien Tech Used (0) 0 Bonus (0) 0 TOTAL SCORE: 532 Bonus ------- None Cogmind --------- Core Integrity 0/250 Matter 272/300 Energy 231/250 System Corruption 0% Temperature Cool (0) Movement Rolling (105) Ox1 Location -10/Subcaves Parts ------- > --- POWER (1) -------- Ion Engine > --- PROPULSION (2) --- Wheel Compact Wheel > --- UTILITY (2) ------ Large Storage Unit Seismic Detector > --- WEAPON (2) ------- Subdweller Laser Assault Rifle > --- INVENTORY (15) --- Ion Engine Wheel Subdweller Monowheel Huge Storage Unit Salvaging Laser Peak State ------------ > --- POWER ------------ Ion Engine > --- PROPULSION ------- Wheel Compact Wheel > --- UTILITY ---------- Large Storage Unit Seismic Detector > --- WEAPON ----------- Subdweller Laser Assault Rifle > --- INVENTORY -------- Ion Engine Wheel Subdweller Monowheel Huge Storage Unit Salvaging Laser [Rating: 8] Favorites ----------- Power Ion Engine Engine Ion Engine Propulsion Wheel Wheel Wheel Utility Large Storage Unit Device Seismic Detector Storage Large Storage Unit Weapon Assault Rifle Energy Gun Subdweller Laser Ballistic Gun Assault Rifle Build | -11 -10 -10 ------- Run | Yrd Mat Sub Slots Evolved . | . . . Power . | . . . Propulsion . | . . . Utility . | . . . Weapon . | . . . Parts Attached 9 | 6 1 2 Power 1 | 1 . . Engine 1 | 1 . . Core . | . . . Reactor . | . . . Propulsion 2 | 2 . . Treads . | . . . Leg . | . . . Wheel 2 | 2 . . Hover . | . . . Flight . | . . . Utility 3 | 1 1 1 Device 1 | . . 1 Storage 2 | 1 1 . Processor . | . . . Hackware . | . . . Protection . | . . . Artifact . | . . . Weapon 3 | 2 . 1 Energy Gun 1 | . . 1 Energy Cannon . | . . . Ballistic Gun 2 | 2 . . Ballistic Cannon . | . . . Launcher . | . . . Special Weapon . | . . . Impact Weapon . | . . . Slashing Weapon . | . . . Piercing Weapon . | . . . Special Melee Weapon . | . . . Unidentified Prototypes . | . . . Parts Lost . | . . . Power . | . . . Propulsion . | . . . Utility . | . . . Weapon . | . . . Highest Loss Streak . | . . . To Critical Strikes . | . . . Average Backups 3 | . 4 4 Power . | . 1 1 Propulsion . | . . 1 Utility 1 | . 1 1 Weapon . | . . 1 Tool/Special . | . . . Unused Backups 5 | . . 5 Power 1 | . . 1 Propulsion 2 | . . 2 Utility 1 | . . 1 Weapon 1 | . . 1 Tool/Special . | . . . Average Slot Usage (%) 99 | . 98 100 Engine 14 | . 14 14 Wheel 28 | . 28 28 Device 4 | . . 14 Storage 23 | . 27 14 Ballistic Gun 27 | . 28 25 Peak Build Rating 8 | 6 7 8 Average Rating 6 | 5 6 7 On Entrance 4 | . 6 7 Avg Prop Armor Cover (%) . | . . . Naked Turns . | . . . Heaviest Build 33 | 13 33 29 Greatest Support 26 | 26 26 26 Greatest Overweight (x) 1 | . 1 1 Average Overweight (x) . | . . 1 Largest Inventory Capacity 15 | 8 15 15 Average Capacity 13 | 7 14 15 Most Carried 5 | 2 5 5 Average Carried 3 | . 4 4 Final Capacity 15 | 8 15 15 Final Carried 5 | 2 5 5 Class Distribution -------------------- 100% | Mutant Dominant Class ---------------- Mutant | -10/Materials Mutant | -10/Subcaves Resources | -11 -10 -10 ----------- Run | Yrd Mat Sub Matter Collected 380 | 300 22 58 Remotely . | . . . Salvage Created 226 | 125 47 54 Parts 14 | 7 2 5 Haulers Intercepted . | . . . Recyclers Shooed 1 | 1 . . Parts Field Recycled . | . . . Retrieved Matter . | . . . Parts Self-Destructed 12 | . . 12 Prevented . | . . . Parts Restored . | . . . Kills | -11 -10 -10 ------- Run | Yrd Mat Sub Combat Hostiles Destroyed 2 | . 1 1 Guns 2 | . 1 1 Classes Destroyed 4 | 2 1 1 Tunneler 2 | 2 . . Recycler 1 | 1 . . Grunt 1 | . 1 . Subdweller 1 | . . 1 Best Kill Streak 3 | 3 1 1 Combat Bots Only 1 | . 1 1 Max Kills in Single Turn 1 | 1 1 1 Gunslinging . | . . . Exploded . | . . . Melee . | . . . Uniques/NPCs Destroyed . | . . . Combat | -11 -10 -10 -------- Run | Yrd Mat Sub Hostile Shots Fired 26 | . 1 25 Missed 7 | . . 7 Hits 19 | . 1 18 Projectile 19 | . 1 18 Critical Strikes 2 | . . 2 Damage Taken 403 | . 11 392 Core 259 | . . 259 Absorbed by Shields . | . . . Core Remaining (%) 100 | 100 . . Volleys Fired 31 | 10 3 18 Largest 2 | 2 2 2 Hottest 80 | 40 40 80 Shots Fired 62 | 20 6 36 Gun 62 | 20 6 36 Cannon . | . . . Launcher . | . . . Special . | . . . Kinetic 56 | 20 6 30 Thermal 6 | . . 6 Explosive . | . . . Electromagnetic . | . . . Robot Hit Streak 26 | 4 3 26 Robot Miss Streak 3 | 1 3 2 Penetration Max . | . . . Secondary Targets 1 | . . 1 Max Gunslinging Chain 1 | . . 1 Shots Hit Robots 49 | 13 3 33 Core Hits 9 | 4 1 4 Critical Kills . | . . . Critical Parts Destroyed . | . . . Critical Strikes . | . . . Melee Attacks . | . . . Impact . | . . . Slashing . | . . . Piercing . | . . . Sneak Attacks . | . . . Combat Hostiles . | . . . Follow-up Attacks . | . . . Damage Inflicted 545 | 141 35 369 Guns 545 | 141 35 369 Cannons . | . . . Explosions . | . . . Melee . | . . . Ramming . | . . . Kinetic 447 | 141 35 271 Thermal 98 | . . 98 Explosive . | . . . Electromagnetic . | . . . Impact . | . . . Slashing . | . . . Piercing . | . . . Highest Corruption . | . . . Average Corruption . | . . . Corruption Purged . | . . . Corruption Blocked . | . . . Overload Shots . | . . . Overflow Damage . | . . . Projectiles . | . . . Explosions . | . . . Melee . | . . . Knockbacks . | . . . Impact . | . . . Kinetic . | . . . Secondary . | . . . Self-Inflicted Damage . | . . . Shots . | . . . Rammed . | . . . Targets Rammed . | . . . Kicked . | . . . Crushed . | . . . Highest Temperature 6 | . 6 . Average Temperature 6 | . 6 . Received Heat Transfer 42 | . 6 36 Siege Activations . | . . . Martial Activations . | . . . Shielding Activations . | . . . Robots Disrupted . | . . . Combat Hostiles . | . . . Robots Corrupted . | . . . Combat Hostiles . | . . . Parts Fried . | . . . Impact Corruptions . | . . . Robots Melted . | . . . Combat Hostiles . | . . . Parts Melted . | . . . Heat Transferred 125 | . . 125 Parts Sabotaged . | . . . Parts Stolen . | . . . Parts Stripped . | . . . Power Chain Reactions . | . . . Alert | -11 -10 -10 ------- Run | Yrd Mat Sub Maximum Alert Level . | . . . Low Security (%) 100 | 100 100 . Level 1 . | . . . Level 2 . | . . . Level 3 . | . . . Level 4 . | . . . Level 5 . | . . . High Security . | . . . Max Security . | . . . Peak Influence 35 | 10 35 . Initial 3 | . 3 . Average 4 | 1 5 . Influence Increases 99 | 15 54 30 Destroy 0b10 Robot/C 20 | . 20 . Destroy 0b10 Robot/NC 15 | 15 . . Destroy Leader 10 | . 10 . Successful Hack 24 | . 24 . Lose Combat Pursuer 30 | . . 30 Influence Decreases 99 | 10 59 30 Entered New Map 2 | . 2 . Time Decay 97 | 10 57 30 Squads Dispatched . | . . . Investigation . | . . . Extermination . | . . . Reinforcement . | . . . Assault . | . . . Garrison . | . . . Intercept . | . . . Searches Triggered . | . . . Construction Impeded . | . . . Haulers Reinforced . | . . . Active Scanning Responses . | . . . Cargo Convoy Interrupts . | . . . Stealth | -11 -10 -10 --------- Run | Yrd Mat Sub Distress Signals 1 | . 1 . Communications Jammed . | . . . Distress Signals . | . . . Times Spotted 13 | . 5 8 Peak Tracking Total 4 | . 4 4 Tactical Retreats 1 | . . 1 Traps | -11 -10 -10 ------- Run | Yrd Mat Sub Traps Triggered . | . . . Indirectly . | . . . Trap Hack Attempts . | . . . Triggered . | . . . Disarmed . | . . . Reprogrammed . | . . . Reused . | . . . Traps Extracted . | . . . Installed . | . . . Triggered . | . . . Machines | -11 -10 -10 ---------- Run | Yrd Mat Sub Machines Disabled . | . . . Max in Single Turn . | . . . Machines Repaired . | . . . Machines Dismantled . | . . . Machines Sabotaged . | . . . Overloaded Fab Kills . | . . . Hacking | -11 -10 -10 --------- Run | Yrd Mat Sub Machines Accessed 3 | . 3 . Terminals 3 | . 3 . Fabricators . | . . . Repair Stations . | . . . Recycling Units . | . . . Scanalyzers . | . . . Garrison Access . | . . . Total Hacks 14 | . 14 . Successful 8 | . 8 . Failed 6 | . 6 . Catastrophic 2 | . 2 . Database Lockouts . | . . . Manual 12 | . 12 . Terminals 14 | . 14 . Fabricators . | . . . Repair Stations . | . . . Recycling Units . | . . . Scanalyzers . | . . . Garrison Access . | . . . Terminal Hacks 6 | . 6 . Robot Schematic 1 | . 1 . Robot Analysis 2 | . 2 . Locate Traps 3 | . 3 . Fabricator Hacks . | . . . Repair Station Hacks . | . . . Recycling Unit Hacks . | . . . Scanalyzer . | . . . Garrison Access Hacks . | . . . Unauthorized Hacks 2 | . 2 . Terminals 2 | . 2 . Botnet 1 | . 1 . Operators 1 | . 1 . Fabricators . | . . . Repair Stations . | . . . Recycling Units . | . . . Scanalyzers . | . . . Garrison Access . | . . . Data Cores Recovered 1 | . 1 . Used . | . . . Hacking Detections 3 | . 3 . Full Trace Events . | . . . Feedback Events . | . . . Feedback Blocked . | . . . Robot Schematics Acquired 1 | . 1 . Robots Built . | . . . Authchips . | . . . Time . | . . . Total Robot Build Rating . | . . . Part Schematics Acquired . | . . . Parts Built . | . . . Authchips . | . . . Time . | . . . Total Part Build Rating . | . . . Part Studies Acquired . | . . . Parts Repaired . | . . . Time . | . . . Parts Recycled . | . . . Recycled Matter . | . . . Retrieved Matter . | . . . Retrieved Components . | . . . Parts Scanalyzed . | . . . Part Schematics Acquired . | . . . Parts Damaged . | . . . Bothacking | -11 -10 -10 ------------ Run | Yrd Mat Sub Used RIF Installer . | . . . Robots Hacked . | . . . Non-combat . | . . . Combat . | . . . Robot Hacks Applied . | . . . Relay Couplers Released . | . . . Fabnet Peak Effective % . | . . . Robots Rewired . | . . . Allies Hacked . | . . . Hacks Repelled . | . . . Allies | -11 -10 -10 -------- Run | Yrd Mat Sub Total Allies . | . . . Largest Group . | . . . Highest-Rated Group . | . . . Highest-Rated Ally . | . . . Total Orders . | . . . Ally Attacks . | . . . Total Damage . | . . . Kills . | . . . Allies Corrupted . | . . . Allies Melted . | . . . Intel | -11 -10 -10 ------- Run | Yrd Mat Sub Active Infowar (turns) 114 | . . 114 Seismic 114 | . . 114 Robot Analysis Total 2 | . 2 . Derelict Logs Recovered . | . . . Drone Launches . | . . . Drone Recoveries . | . . . Exploration | -11 -10 -10 ------------- Run | Yrd Mat Sub Turns Passed 469 | 76 279 114 Spaces Moved 330 | 43 235 52 Core 3 | 3 . . Treads . | . . . Legs . | . . . Wheels 327 | 40 235 52 Hover . | . . . Flight . | . . . Fastest Speed 50 | 50 90 105 Average Speed 102 | 86 104 105 Slowest Speed 105 | 90 105 105 Overloaded Moves . | . . . Propulsion Burnouts . | . . . Robots Hopped . | . . . Potential Cave-ins . | . . . Cave-ins Triggered . | . . . Exploration Rate (%) 19 | 4 50 4 Regions Visited 2 Branch Regions 1 Pre-discovered Areas . | . . . Known Exits Taken . | . . . Unknown Exits Taken 2 | 1 1 . Scrap Searched . | . . . Spaces Dug . | . . . Terrain Destroyed . | . . . Melee . | . . . Projectile . | . . . AOE . | . . . Terrain Rammed . | . . . Walls Destroyed . | . . . Machines Disabled . | . . . Actions | -11 -10 -10 --------- Run | Yrd Mat Sub Total 402 | 60 262 80 Wait 26 | . 21 5 Move 328 | 42 234 52 Hop . | . . . Pick Up 6 | 2 3 1 Fast Attach 8 | 6 1 1 Attach . | . . . Detach . | . . . Swap 1 | . . 1 Drop 2 | . . 2 Fire 31 | 10 3 18 Melee . | . . . Ram . | . . . Kick . | . . . Crush . | . . . Escape Stasis . | . . . Rewire . | . . . Trap . | . . . Miscellaneous . | . . . Route ------- -11/Scrapyard -10/Materials (discovered 3 exits: [*Mat x2] / [*Sub]) -10/Subcaves (discovered 1 exit: [*Mat]) History --------- Turn | Location | Event 18 | -11/Scrapyard | Discovered new exit (range 16) 77 | -11/Scrapyard | Entered Materials 78 | -10/Materials | Met a group of wandering Federalists 239 | -10/Materials | Discovered new exit (range 15) 306 | -10/Materials | Discovered new exit (range 15) 313 | -10/Materials | Build established: Mutant 332 | -10/Materials | Discovered new exit (range 3) 356 | -10/Materials | Entered Subcaves 357 | -10/Subcaves | Continued accompanying wandering Federalists (4) 357 | -10/Subcaves | Approached by a straggling Scientist 408 | -10/Subcaves | Discovered new exit (range 8) 452 | -10/Subcaves | Core integrity fell below 50% 465 | -10/Subcaves | Core integrity fell below 20% 470 | -10/Subcaves | Destroyed by Z2-80E(R) with Subdweller Machine Gun Last Messages --------------- repair. 00413_ Lgt. Assault Rifle fries itself beyond repair. 00413_ Lgt. Ion Engine fries itself beyond repair. 00417_ Subatomizers dissect the Imp. Heat Sink. 00438_ BT-U7D(R) destroyed. 00438_ Switching to secondary target: Z2-80E(R). 00446_ Subatomizers dissect the Aluminum Leg. 00448_ Acquired 28 matter. 00450_ Acquired 4 matter. 00450_ Z2-80E(R) affixes Scrap Shield Fragment to Scrap Shield. 00453_ Dropped Lgt. Assault Rifle. 00453_ Acquired Sub. Laser. 00456_ Z2-80E(R) affixes Scrap Shield Fragment to Scrap Shield. 00460_ Subatomizers dissect the Aluminum Leg. 00461_ Z2-80E(R) affixes Scrap Shield Fragment to Scrap Shield. Map ----- +----------------------------------------------------+ | ?????????????????????????????????????????????????? | | ?????????????????????????????????????????????????? | | ?????????????????????????????????????????????????? | | ?????????????????????????????????????????????????? | | ?????????????????????????????????????????????????? | | ?????????????????????????????????????????????????? | | ?????????????????????????????????????????????????? | | ?????????????????????????????????????????????????? | | ?????????????????????????????????????????????????? | | ?????????????????????????????????????????????????? | | ?????????????????????????????????????????????????? | | ?????????????????????????????????????????????????? | | ??????????????????? ???????????????????????????? | | ?????????????????% ??????????????????????????? | | ????????????????? ??????????????????????????? | | ?????????????????? ?????????????????????????? | | ??????????????????# ?????????????????????????? | | ??????????????????? ?????????????????????????? | | ??????????????????? ?????????????????????????? | | ???????????????????# ?????????????????????????? | | ???????????????????? ?????????????????????????? | | ?????????????????????"" ###??????????????????????? | | ??????????????????????"" #??????????????????????? | | ?????????????????#????## ##?????????????????????? | | ????????????????## ???# [ #############?????????? | | ???????????????##!* ### R@ ## #?????????? | | ???????????????#[%"% % ! %#% #??????????? | | ??????????"" ="""""" ##* % ##?######???? | | ????????????"?" " ""% ### #### #???? | | ?????????????# [ #?### R =%! #???? | | ?????????????### <% ???## *[ ! ###?? | | ??????????????# """ % ????# &! *## %#?? | | ??????????????# ##""" % ??# "##%"### #?? | | ?????????????????# ""## ??# ""##!!#?# #?? | | ?????????????????## ?## #?# " ##%&&##" #? | | ??????????????????# ???###?########%!## "" #? | | ?????????????????? ??????????????""##? %#"""%##? | | ????????????????? %??????????????%""#?# ##""" #?? | | ????????????????? ??????????????? "#?# ??#""##?? | | ????????????????? ????????????????""##?# ??? ???? | | ???????????????????????????????????"??? ????????? | | ??????????????????????????????????????? ????????? | | ??????????????????????????????????????? ????????? | | ??????????????????????????????????????? ?????????? | | ???????????????????????????????????????#?????????? | | ?????????????????????????????????????????????????? | | ?????????????????????????????????????????????????? | | ?????????????????????????????????????????????????? | | ?????????????????????????????????????????????????? | | ?????????????????????????????????????????????????? | +----------------------------------------------------+ Best States ------------- Heat Dissipation 25 Energy Generation 10 Energy Capacity 250 Matter Stores 300 Matter Capacity 300 Sight Range 16 Terrain Scan Density 10 Evasion (%) 44 Item Schematics ----------------- None Robot Schematics ------------------ M-13 Machinist | -10/Materials | Hacked Fabricated ------------ Nothing Repaired ---------- Nothing Studied --------- None Alien Tech Used ----------------- None Achievements -------------- None Challenges ------------ None Game ------ Seed MagneticNeutronBattery Manual? 0 Play Time 00:07:20 Cumulative 399.4 hours Start 2026.01.09 @ 20:13:32 End 2026.01.09 @ 20:18:57 Sessions 1 Manual Loads 0 Difficulty Rogue Special Mode None Game No. 140 Rogue 140 Adventurer 0 Explorer 0 Win Type - Total 10 Types 5/0/1/1/0/0/0/1/0/2 Lore% 84 Gallery% 80 Achievement% 70 Wizard Run 0 Options --------- Layout 1 ASCII 0 Keyboard 0 Movement Mouse Keybinds 0 Fullscreen 2 Font 32/SmallcapsGlow Map View 50x35 Zoom Use 0% Tactical HUD 1 Map Filters NONE Filters NONE Steam 1 RUN: 854a2394-7b9e-468e-b752-2a41f3be3044